lending/lending_fUSD_20240411
["ID","MTS","AMOUNT","RATE_DAILY","PERIOD"]
[322158708,1712858866027,3000.0,0.0002007,2]
[322158709,1712858866050,3000.0,0.0002007,2]
[322158710,1712858866073,3000.0,0.0002007,2]
[322158711,1712858866096,3000.0,0.0002007,2]
[322158712,1712858866119,126.82352187,0.0002007,2]
[322158713,1712858885090,1500.0,0.0002007,2]
[322158714,1712858886897,1182.9,0.0002007,2]
[322158715,1712858901506,190.27647813,0.0002007,2]
[322158716,1712858901530,309.72352187,0.0002007,2]
[322158717,1712858922359,1000.0,0.00020698,2]
[322158718,1712858922402,1690.27647813,0.00020698,2]
[322158719,1712858922424,3000.0,0.00020698,2]
[322158720,1712858922448,3000.0,0.00020698,2]
[322158721,1712858922471,2858.7863448,0.00020698,2]
[322158722,1712858928228,141.2136552,0.00020698,2]
[322158723,1712858928250,123.73636701,0.00020698,2]
[322158725,1712858935812,2876.26363299,0.00020696,2]
[322158726,1712858935834,3000.0,0.00020696,2]
[322158727,1712858935856,2965.66247056,0.00020696,2]
[322158728,1712858942099,34.33752944,0.00020698,2]
[322158729,1712858942120,115.66247056,0.00020698,2]
[322158730,1712858944966,150.5,0.0002079,15]
[322158731,1712858945576,150.5,0.0002078,15]
[322158732,1712858946345,150.5,0.0002077,15]
[322158733,1712858948668,-155.0,0.00020699,2]
[322158734,1712858948692,-2845.0,0.00020699,2]
[322158735,1712858949512,-3000.0,0.00020699,2]
[322158736,1712858949644,2884.33752944,0.0002007,2]
[322158737,1712858949672,21015.66247056,0.0002007,2]
[322158738,1712858951700,-366.97248697,0.00020699,2]
[322158739,1712858951723,-2633.02751303,0.00020699,2]
[322158740,1712858953207,-1681.84336568,0.00020699,2]
[322158741,1712858961322,825.06,0.00018225,2]
[322158742,1712858961391,493.09663432,0.00020488,2]
[322158743,1712858961417,331.96336568,0.00020488,2]
[322158788,1712859032670,-347.96815075,0.00020696,2]
[322158790,1712859032687,-700.08093092,0.00020696,2]
[322158815,1712859033699,-27812.09133172,0.00020696,2]
[322158816,1712859033710,-155.0,0.00020698,2]
[322158817,1712859033720,-155.0,0.00020698,2]
[322158818,1712859033729,-408.29949908,0.00020698,2]
[322158819,1712859033739,-161.19372195,0.00020699,2]
[322158820,1712859033750,-1000.0,0.00020699,2]
[322158821,1712859033760,-154.088817,0.000207,2]
[322158822,1712859033770,-358.42949656,0.000207,2]
[322158823,1712859033780,-2594.04942801,0.000207,2]
[322158824,1712859033793,-160.53,0.00020703,2]
[322158825,1712859033803,-1531.75,0.00020725,2]
[322158826,1712859033813,-449.73791284,0.00020783,2]
[322158827,1712859033823,-9805.2047817,0.00020785,2]
[322158828,1712859033834,-160.53,0.00020786,2]
[322158829,1712859033844,-186.56,0.00020788,3]
[322158830,1712859033854,-559.72,0.00020788,3]
[322158831,1712859033864,-363.78629371,0.00020788,2]
[322158832,1712859033874,-363.78629371,0.00020788,2]
[322158833,1712859033883,-278.4,0.00020788,2]
[322158834,1712859033892,-278.4,0.00020788,2]
[322158835,1712859033902,-278.4,0.00020788,2]
[322158836,1712859033912,-278.4,0.00020788,2]
[322158837,1712859033921,-278.4,0.00020788,2]
[322158838,1712859033931,-278.4,0.00020788,2]
[322158839,1712859033940,-278.4,0.00020788,2]
[322158840,1712859033949,-278.4,0.00020788,2]
[322158841,1712859033959,-278.4,0.00020788,2]
[322158842,1712859033968,-278.4,0.0002079,2]
[322158843,1712859033977,-241.04858068,0.00020793,2]
[322158844,1712859033988,-1046.55023348,0.00020793,2]
[322158845,1712859033997,-289.82922792,0.00020793,2]
[322158846,1712859034007,-1056.48302686,0.00020793,2]
[322158847,1712859034016,-342.43500003,0.00020793,2]
[322158848,1712859034025,-2495.3365777,0.00020793,2]
[322158849,1712859034037,-262.51237403,0.00020793,2]
[322158850,1712859034046,-209.56408712,0.00020793,2]
[322158851,1712859034055,-10549.06282293,0.00020794,2]
[322158852,1712859034065,-536.07,0.00020794,2]
[322158853,1712859034075,-101566.88726215,0.00020795,2]
[322158854,1712859034085,-2350.35141617,0.00020796,2]
[322158855,1712859034095,-215.47501592,0.00020796,2]
[322158856,1712859034106,-204.92262843,0.00020796,2]
[322158857,1712859034117,-2116.14018314,0.00020796,2]
[322158858,1712859034126,-199.59960545,0.00020796,2]
[322158859,1712859034136,-222.95486105,0.00020796,2]
[322158860,1712859034146,-155.0,0.00020796,2]
[322158861,1712859034155,-19454.75608231,0.00020796,2]
[322158862,1712859034164,-155.0,0.00020796,2]
[322158863,1712859034173,-640.36073916,0.00020796,2]
[322158864,1712859034183,-185.78135859,0.00020796,2]
[322158865,1712859034193,-155.0,0.00020796,2]
[322158866,1712859034202,-1677.62251739,0.00020796,2]
[322158867,1712859034212,-4394.10779965,0.00020796,2]
[322158868,1712859034221,-1239.24531074,0.00020796,2]
[322158869,1712859034231,-173.98571717,0.00020796,2]
[322158870,1712859034240,-4579.45873606,0.00020796,2]
[322158871,1712859034249,-1763.60746529,0.00020796,2]
[322158872,1712859034259,-155.56614274,0.00020796,2]
[322158873,1712859034268,-157.15060433,0.00020797,2]
[322158874,1712859034278,-611.236241,0.00020797,2]
[322158875,1712859034289,-500.0,0.00020797,2]
[322158876,1712859034298,-36219.50081453,0.00020798,2]
[322158877,1712859034311,-1700.0,0.00020798,2]
[322158878,1712859034351,-5778.2467046,0.00020798,2]
[322158892,1712859038869,-10510.64443999,0.00020798,2]
[322158893,1712859038882,-866.7785217,0.00020798,2]
[322158894,1712859038894,-981.97731131,0.00020798,2]
[322158896,1712859039015,-1606504.222563,0.00020798,2]
[322158897,1712859039026,-195364.37784617,0.000208,2]
[322158898,1712859039035,-250.48621,0.00020822,2]
[322158899,1712859039047,-160.53,0.00020869,2]
[322158900,1712859039057,-160.53,0.00020951,2]
[322158901,1712859039067,-4323.81843898,0.00020999,2]
[322158902,1712859039077,-57143.55333118,0.00021,2]
[322158903,1712859039086,-550.0,0.00021,3]
[322158904,1712859039097,-2209.24532718,0.00021,2]
[322158905,1712859039108,-160.53,0.00021034,2]
[322158906,1712859039118,-160.53,0.00021117,2]
[322158907,1712859039127,-160.53,0.00021199,2]
[322158908,1712859039137,-160.53,0.00021282,2]
[322158909,1712859039146,-643.79,0.00021296,2]
[322158911,1712859039155,-160.53,0.00021365,2]
[322158913,1712859039164,-200.0,0.00021387,2]
[322158915,1712859039172,-2339.1,0.00021424,2]
[322158917,1712859039182,-160.53,0.00021447,2]
[322158919,1712859039191,-160.53,0.0002153,2]
[322158921,1712859039201,-160.53,0.00021613,2]
[322158923,1712859039210,-154.08881698,0.00021633,2]
[322158925,1712859039220,-250.48621,0.00021644,2]
[322158927,1712859039229,-160.53,0.00021695,2]
[322158929,1712859039239,-8082.79077788,0.00021706,2]
[322158931,1712859039248,-256.0,0.00021809,2]
[322158933,1712859039258,-167.47,0.00021844,2]
[322158935,1712859039267,-28860.14041335,0.00021916,2]
[322158937,1712859039276,-250.0,0.00021918,2]
[322158939,1712859039285,-250.0,0.00021918,2]
[322158941,1712859039295,-8841.92610349,0.00021927,2]
[322158943,1712859039304,-783.81607988,0.00022,2]
[322158945,1712859039313,-160.73,0.00022117,2]
[322158947,1712859039322,-2594.04942798,0.00022151,2]
[322158949,1712859039331,-184.91,0.00022213,2]
[322158951,1712859039340,-250.48621,0.00022466,2]
[322158953,1712859039349,-154.08881698,0.00022567,2]
[322158955,1712859039358,-219.89,0.00022579,2]
[322158957,1712859039368,-343.61711583,0.00022684,2]
[322158959,1712859039377,-195.18,0.0002269,2]
[322158961,1712859039386,-8082.79077788,0.00022714,2]
[322158963,1712859039395,-825.06,0.00022752,2]
[322158965,1712859039404,-250.52,0.00022894,2]
[322158967,1712859039413,-600.0,0.00023,3]
[322158969,1712859039423,-307.11461416,0.00023,2]
[322158971,1712859039433,-358.42949656,0.00023034,2]
[322158972,1712859039443,-28860.14041335,0.00023137,2]
[322158974,1712859039453,-8841.92610349,0.00023158,2]
[322158976,1712859039462,-250.48621,0.00023288,2]
[322158979,1712859039474,-152.09777078,0.00023307,2]
[322158981,1712859039483,-1531.75,0.00023465,2]
[322158983,1712859039493,-154.08881698,0.000235,2]
[322158984,1712859039503,-8605.16,0.00023516,2]
[322158986,1712859039513,-2594.04942798,0.00023602,2]
[322158989,1712859039523,-8082.79077788,0.00023721,2]
[322158990,1712859039535,-184.91,0.00023784,2]
[322158992,1712859039547,-219.89,0.00023949,2]
[322158994,1712859039556,-250.48621,0.0002411,2]
[322158997,1712859039567,-8841.92610349,0.00024389,2]
[322158998,1712859039578,-154.08881698,0.00024433,2]
[322159001,1712859039587,-256.0,0.00024535,2]
[322159002,1712859039597,-8082.79077788,0.00024729,2]
[322159004,1712859039606,-2014.28390047,0.000248,2]
[322159007,1712859039617,-250.48621,0.00024932,2]
[322159008,1712859039626,-650.0,0.00025,3]
[322159010,1712859039635,-2227.73871045,0.00025,2]
[322159012,1712859039644,-1361.79189436,0.00025,2]
[322159014,1712859039654,-825.06,0.00025016,2]
[322159016,1712859039662,-2594.04942798,0.00025053,2]
[322159018,1712859039671,-182.0,0.00025324,2]
[322159020,1712859039682,-184.91,0.00025355,2]
[322159022,1712859039691,-154.08881698,0.00025367,2]
[322159024,1712859039700,-358.42949656,0.00025368,2]
[322159026,1712859039709,-182.0,0.00025387,2]
[322159027,1712859039719,-167.47,0.0002545,2]
[322159028,1712859039728,-182.0,0.0002545,2]
[322159029,1712859039741,-8841.92610349,0.0002562,2]
[322159030,1712859039751,-8082.79077788,0.00025737,2]
[322159031,1712859039761,-250.48621,0.00025753,2]
[322159032,1712859039770,-152.09777078,0.00025915,2]
[322159033,1712859039779,-444.10021711,0.00026,2]
[322159034,1712859039789,-1531.75,0.00026205,2]
[322159035,1712859039798,-154.08881698,0.000263,2]
[322159036,1712859039807,-2594.04942798,0.00026505,3]
[322159038,1712859039817,-250.48621,0.00026575,2]
[322159040,1712859039827,-167.43,0.00026608,2]
[322159042,1712859039837,-8082.79077788,0.00026745,2]
[322159044,1712859039847,-8841.92610349,0.0002685,2]
[322159046,1712859039856,-184.91,0.00026926,2]
[322159048,1712859039866,-10000.0,0.00026986,2]
[322159049,1712859039875,-700.0,0.00027,3]
[322159050,1712859039884,-154.08881698,0.00027233,2]
[322159051,1712859039893,-256.0,0.00027261,2]
[322159052,1712859039902,-825.06,0.0002728,2]
[322159053,1712859039911,-258.99001207,0.00027397,2]
[322159054,1712859039921,-250.48621,0.00027397,2]
[322159055,1712859039930,-19999.99,0.00027397,2]
[322159056,1712859039939,-7511.06,0.00027397,2]
[322159057,1712859039949,-1030.71,0.00027397,2]
[322159058,1712859039959,-6169.94,0.00027397,2]
[322159059,1712859039968,-27970.83,0.00027397,2]
[322159060,1712859039977,-744.0,0.00027645,2]
[322159061,1712859039987,-358.42949656,0.00027702,2]
[322159062,1712859039996,-8082.79077788,0.00027753,2]
[322159063,1712859040006,-2594.04942798,0.00027956,3]
[322159064,1712859040019,-8841.92610349,0.00028081,2]
[322159065,1712859040029,-607.0,0.000281,2]
[322159066,1712859040039,-154.08881698,0.00028167,2]
[322159067,1712859040048,-3231.0,0.000282,2]
[322159068,1712859040058,-478.19,0.000283,2]
[322159069,1712859040069,-152.09777078,0.00028524,2]
[322159070,1712859040078,-5711.0,0.00028718,2]
[322159071,1712859040088,-305.808,0.00028718,2]
[322159072,1712859040097,-573.534,0.00028718,2]
[322159073,1712859040108,-4796.0,0.00028718,2]
[322159075,1712859040120,-2463.0,0.00028718,2]
[322159076,1712859040130,-1076.589,0.00028718,2]
[322159077,1712859040141,-8082.79077788,0.00028761,2]
[322159078,1712859040151,-167.43,0.00028803,2]
[322159079,1712859040163,-483.44724555,0.00028942,5]
[322159081,1712859040174,-750.0,0.00029,3]
[322159083,1712859040185,-154.08881698,0.000291,2]
[322159085,1712859040198,-8841.92610349,0.00029312,2]
[322159086,1712859040208,-800.0,0.00029315,2]
[322159087,1712859040220,-1000.0,0.00029355,2]
[322159088,1712859040230,-2594.04942798,0.00029407,4]
[322159089,1712859040241,-445.48310641,0.000295,3]
[322159090,1712859040251,-825.06,0.00029544,2]
[322159091,1712859040261,-8082.79077788,0.00029768,2]
[322159092,1712859040272,-70742.97647928,0.000299,3]
[322159093,1712859040282,-291.21,0.000299,2]
[322159094,1712859040294,-256.0,0.00029988,2]
[322159095,1712859040306,-1000.0,0.0002999,2]
[322159096,1712859040316,-1000.0,0.0002999,2]
[322159097,1712859040326,-1000.0,0.0002999,2]
[322159098,1712859040337,-1000.0,0.0002999,2]
[322159099,1712859040347,-1000.0,0.0002999,2]
[322159100,1712859040357,-1000.0,0.0002999,2]
[322159101,1712859040369,-1000.0,0.0002999,2]
[322159102,1712859040380,-1000.0,0.0002999,2]
[322159103,1712859040392,-1000.0,0.0002999,2]
[322159104,1712859040405,-1000.0,0.0002999,2]
[322159105,1712859040415,-1000.0,0.0002999,2]
[322159106,1712859040427,-1000.0,0.0002999,2]
[322159107,1712859040437,-1000.0,0.0002999,2]
[322159108,1712859040448,-1000.0,0.0002999,2]
[322159109,1712859040460,-1000.0,0.0002999,2]
[322159110,1712859040474,-1000.0,0.0002999,2]
[322159111,1712859040485,-1000.0,0.0002999,2]
[322159112,1712859040496,-1000.0,0.0002999,2]
[322159113,1712859040507,-1000.0,0.0002999,2]
[322159114,1712859040518,-1000.0,0.0002999,2]
[322159115,1712859040529,-1000.0,0.0002999,2]
[322159116,1712859040540,-1000.0,0.0002999,2]
[322159117,1712859040550,-1000.0,0.0002999,2]
[322159118,1712859040559,-1000.0,0.0002999,2]
[322159119,1712859040569,-1000.0,0.0002999,2]
[322159120,1712859040579,-1000.0,0.0002999,2]
[322159121,1712859040589,-1000.0,0.0002999,2]
[322159122,1712859040600,-1000.0,0.0002999,2]
[322159123,1712859040610,-1000.0,0.0002999,2]
[322159124,1712859040620,-1000.0,0.0002999,2]
[322159125,1712859040630,-1000.0,0.0002999,2]
[322159126,1712859040639,-1000.0,0.0002999,2]
[322159127,1712859040650,-1000.0,0.0002999,2]
[322159128,1712859040660,-1000.0,0.0002999,2]
[322159129,1712859040670,-1000.0,0.0002999,2]
[322159130,1712859040681,-1000.0,0.0002999,2]
[322159131,1712859040690,-1000.0,0.0002999,2]
[322159132,1712859040700,-1000.0,0.0002999,2]
[322159133,1712859040709,-1000.0,0.0002999,2]
[322159134,1712859040719,-1000.0,0.0002999,2]
[322159135,1712859040729,-1000.0,0.0002999,2]
[322159143,1712859041044,-1000.0,0.0002999,2]
[322159144,1712859041055,-1000.0,0.0002999,2]
[322159145,1712859041065,-1000.0,0.0002999,2]
[322159146,1712859041075,-1000.0,0.0002999,2]
[322159147,1712859041086,-1000.0,0.0002999,2]
[322159148,1712859041098,-1000.0,0.0002999,2]
[322159149,1712859041110,-1000.0,0.0002999,2]
[322159150,1712859041125,-1000.0,0.0002999,2]
[322159151,1712859041134,-1000.0,0.0002999,2]
[322159152,1712859041144,-1000.0,0.0002999,2]
[322159153,1712859041155,-1000.0,0.0002999,2]
[322159154,1712859041167,-1000.0,0.0002999,2]
[322159155,1712859041177,-1000.0,0.0002999,2]
[322159156,1712859041186,-1000.0,0.0002999,2]
[322159157,1712859041198,-1000.0,0.0002999,2]
[322159158,1712859041212,-1000.0,0.0002999,2]
[322159159,1712859041223,-1000.0,0.0002999,2]
[322159160,1712859041234,-1000.0,0.0002999,2]
[322159161,1712859041245,-1000.0,0.0002999,2]
[322159162,1712859041256,-1000.0,0.0002999,2]
[322159163,1712859041267,-1000.0,0.0002999,2]
[322159164,1712859041277,-1000.0,0.0002999,2]
[322159165,1712859041290,-1000.0,0.0002999,2]
[322159166,1712859041300,-1000.0,0.0002999,2]
[322159167,1712859041310,-1000.0,0.0002999,2]
[322159168,1712859041322,-1000.0,0.0002999,2]
[322159169,1712859041334,-1000.0,0.0002999,2]
[322159170,1712859041345,-1000.0,0.0002999,2]
[322159171,1712859041355,-1000.0,0.0002999,2]
[322159172,1712859041364,-1000.0,0.0002999,2]
[322159173,1712859041373,-1000.0,0.0002999,2]
[322159174,1712859041383,-1000.0,0.0002999,2]
[322159175,1712859041394,-1000.0,0.0002999,2]
[322159176,1712859041407,-1000.0,0.0002999,2]
[322159177,1712859041419,-1000.0,0.0002999,2]
[322159178,1712859041430,-1000.0,0.0002999,2]
[322159179,1712859041441,-1000.0,0.0002999,2]
[322159180,1712859041451,-1000.0,0.0002999,2]
[322159181,1712859041462,-1000.0,0.0002999,2]
[322159182,1712859041473,-1000.0,0.0002999,2]
[322159183,1712859041483,-1000.0,0.0002999,2]
[322159184,1712859041494,-1000.0,0.0002999,2]
[322159185,1712859041505,-1000.0,0.0002999,2]
[322159186,1712859041520,-1000.0,0.0002999,2]
[322159187,1712859041532,-1000.0,0.0002999,2]
[322159188,1712859041545,-1000.0,0.0002999,2]
[322159189,1712859041557,-1000.0,0.0002999,2]
[322159190,1712859041569,-1000.0,0.0002999,2]
[322159191,1712859041579,-1000.0,0.0002999,2]
[322159192,1712859041590,-1040.0,0.0002999,2]
[322159193,1712859041600,-200.0,0.0002999,2]
[322159194,1712859041611,-200.0,0.0002999,2]
[322159195,1712859041621,-200.0,0.0002999,2]
[322159196,1712859041631,-200.0,0.0002999,2]
[322159197,1712859041640,-163.0,0.0002999,2]
[322159198,1712859041650,-785.52906982,0.0003,2]
[322159199,1712859041659,-5548.02388374,0.0003,2]
[322159200,1712859041669,-20230.83973666,0.0003,2]
[322159201,1712859041678,-478.19,0.0003,2]
[322159202,1712859041688,-301.84039649,0.0003,2]
[322159203,1712859041698,-457.92535538,0.0003,2]
[322159204,1712859041708,-154.08881698,0.00030033,2]
[322159205,1712859041718,-358.42949656,0.00030036,2]
[322159206,1712859041727,-770.97059006,0.00030036,2]
[322159207,1712859041737,-728.7601133,0.00030036,2]
[322159208,1712859041746,-9964.54291811,0.00030036,2]
[322159209,1712859041756,-335.78034669,0.00030036,2]
[322159210,1712859041765,-1807.01439,0.000301,2]
[322159211,1712859041775,-296.92163089,0.00030104,7]
[322159212,1712859041785,-363.78629371,0.00030126,2]
[322159213,1712859041795,-267.62055149,0.00030134,4]
[322159214,1712859041804,-1296.33667789,0.00030135,4]
[322159215,1712859041814,-3374.83061436,0.00030135,4]
[322159216,1712859041824,-266.79799477,0.00030135,4]
[322159217,1712859041833,-500.0,0.00030136,2]
[322159218,1712859041842,-500.0,0.00030136,2]
[322159219,1712859041852,-215.99189234,0.00030136,2]
[322159220,1712859041861,-500.0,0.00030136,2]
[322159221,1712859041871,-500.0,0.00030136,2]
[322159222,1712859041883,-500.0,0.00030136,2]
[322159223,1712859041893,-1603.06650925,0.00030136,4]
[322159224,1712859041903,-7459.03459614,0.00030136,4]
[322159225,1712859041913,-500.0,0.00030136,2]
[322159226,1712859041924,-500.0,0.00030136,2]
[322159227,1712859041934,-500.0,0.00030136,2]
[322159228,1712859041944,-582.1941471,0.00030136,2]
[322159229,1712859041953,-226.18465874,0.00030136,2]
[322159230,1712859041962,-500.0,0.00030136,2]
[322159231,1712859041972,-500.0,0.00030136,2]
[322159232,1712859041981,-500.0,0.00030136,2]
[322159233,1712859041990,-507.73392188,0.00030136,2]
[322159234,1712859041999,-500.0,0.00030136,2]
[322159235,1712859042052,-500.0,0.00030136,2]
[322159236,1712859042061,-500.0,0.00030136,2]
[322159237,1712859042071,-500.0,0.00030136,2]
[322159238,1712859042080,-500.0,0.00030136,2]
[322159239,1712859042090,-500.0,0.00030136,2]
[322159240,1712859042099,-500.0,0.00030136,2]
[322159241,1712859042109,-500.0,0.00030136,2]
[322159242,1712859042123,-500.5751319,0.00030136,2]
[322159243,1712859042132,-500.0,0.00030136,2]
[322159244,1712859042141,-500.0,0.00030136,2]
[322159245,1712859042151,-500.0,0.00030136,2]
[322159246,1712859042161,-500.0,0.00030136,2]
[322159247,1712859042171,-574.16885424,0.00030136,2]
[322159248,1712859042180,-495.57130229,0.00030136,2]
[322159249,1712859042190,-500.0,0.00030136,2]
[322159250,1712859042200,-500.0,0.00030136,2]
[322159251,1712859042210,-500.0,0.00030136,2]
[322159252,1712859042220,-500.0,0.00030136,2]
[322159253,1712859042229,-500.0,0.00030136,2]
[322159254,1712859042240,-269.06827834,0.00030136,2]
[322159255,1712859042250,-500.0,0.00030136,2]
[322159256,1712859042259,-500.0,0.00030136,2]
[322159257,1712859042268,-637.88600504,0.00030136,2]
[322159258,1712859042278,-500.0,0.00030136,2]
[322159259,1712859042287,-503.57936717,0.00030136,2]
[322159260,1712859042298,-442.58318375,0.00030136,2]
[322159261,1712859042307,-500.0,0.00030136,2]
[322159262,1712859042318,-500.0,0.00030136,2]
[322159263,1712859042327,-500.0,0.00030136,2]
[322159264,1712859042337,-315.88096224,0.00030136,2]
[322159265,1712859042347,-500.0,0.00030136,2]
[322159266,1712859042357,-574.21564177,0.00030136,2]
[322159267,1712859042366,-515.37464451,0.00030136,2]
[322159268,1712859042375,-500.0,0.00030136,2]
[322159269,1712859042385,-538.52045806,0.00030136,2]
[322159270,1712859042394,-500.0,0.00030136,2]
[322159271,1712859042403,-1102.11,0.00030136,2]
[322159272,1712859042412,-500.0,0.00030136,2]
[322159273,1712859042422,-238.97737043,0.00030136,2]
[322159274,1712859042431,-500.0,0.00030136,2]
[322159275,1712859042441,-500.0,0.00030136,2]
[322159276,1712859042450,-445.25748969,0.00030136,2]
[322159277,1712859042459,-500.0,0.00030136,2]
[322159278,1712859042469,-534.94577928,0.00030136,2]
[322159279,1712859042478,-500.0,0.00030136,2]
[322159280,1712859042487,-500.0,0.00030136,2]
[322159281,1712859042496,-500.0,0.00030136,2]
[322159282,1712859042506,-500.0,0.00030136,2]
[322159283,1712859042515,-500.0,0.00030136,2]
[322159284,1712859042525,-521.83,0.00030136,2]
[322159285,1712859042537,-500.0,0.00030136,2]
[322159286,1712859042548,-507.3472958,0.00030136,2]
[322159287,1712859042558,-500.0,0.00030136,2]
[322159288,1712859042568,-500.0,0.00030136,2]
[322159289,1712859042577,-521.57,0.00030136,2]
[322159290,1712859042586,-500.0,0.00030136,2]
[322159291,1712859042596,-500.0,0.00030136,2]
[322159292,1712859042606,-500.0,0.00030136,2]
[322159293,1712859042615,-665.4,0.00030136,2]
[322159294,1712859042624,-500.0,0.00030136,2]
[322159295,1712859042634,-500.0,0.00030136,2]
[322159296,1712859042643,-500.0,0.00030136,2]
[322159297,1712859042653,-500.0,0.00030136,2]
[322159298,1712859042662,-500.0,0.00030136,2]
[322159299,1712859042672,-500.0,0.00030136,2]
[322159300,1712859042681,-500.0,0.00030136,2]
[322159301,1712859042691,-500.0,0.00030136,2]
[322159302,1712859042700,-500.0,0.00030136,2]
[322159303,1712859042710,-500.0,0.00030136,2]
[322159304,1712859042720,-1245.45,0.00030136,2]
[322159305,1712859042730,-500.0,0.00030136,2]
[322159306,1712859042740,-500.0,0.00030136,2]
[322159307,1712859042750,-500.0,0.00030136,2]
[322159308,1712859042760,-500.0,0.00030136,2]
[322159309,1712859042771,-500.0,0.00030136,2]
[322159310,1712859042781,-500.0,0.00030136,2]
[322159311,1712859042791,-500.0,0.00030136,2]
[322159312,1712859042799,-507.18425562,0.00030136,2]
[322159313,1712859042809,-500.0,0.00030136,2]
[322159314,1712859042819,-500.0,0.00030136,2]
[322159315,1712859042829,-500.0,0.00030136,2]
[322159316,1712859042838,-500.0,0.00030136,2]
[322159317,1712859042848,-500.0,0.00030136,2]
[322159318,1712859042858,-748.14,0.00030136,2]
[322159319,1712859042867,-500.0,0.00030136,2]
[322159320,1712859042876,-500.0,0.00030136,2]
[322159321,1712859042885,-500.0,0.00030136,2]
[322159322,1712859042894,-500.0,0.00030136,2]
[322159323,1712859042907,-500.0,0.00030136,2]
[322159324,1712859042918,-500.0,0.00030136,2]
[322159325,1712859042929,-500.0,0.00030136,2]
[322159326,1712859042938,-944.43,0.00030136,2]
[322159327,1712859042949,-537.78198253,0.00030136,2]
[322159328,1712859042960,-500.0,0.00030136,2]
[322159329,1712859042970,-526.1,0.00030136,2]
[322159330,1712859042982,-500.0,0.00030136,2]
[322159331,1712859042992,-548.77,0.00030136,2]
[322159332,1712859043001,-500.0,0.00030136,2]
[322159333,1712859043011,-500.0,0.00030136,2]
[322159334,1712859043021,-500.0,0.00030136,2]
[322159335,1712859043031,-500.0,0.00030136,2]
[322159336,1712859043042,-500.0,0.00030136,2]
[322159337,1712859043051,-500.0,0.00030136,2]
[322159338,1712859043061,-500.0,0.00030136,2]
[322159339,1712859043072,-500.0,0.00030136,2]
[322159341,1712859043081,-500.0,0.00030136,2]
[322159342,1712859043091,-545.24955695,0.00030136,2]
[322159343,1712859043102,-500.0,0.00030136,2]
[322159344,1712859043117,-500.0,0.00030136,2]
[322159345,1712859043126,-500.0,0.00030136,2]
[322159346,1712859043136,-500.0,0.00030136,2]
[322159347,1712859043147,-500.0,0.00030136,2]
[322159348,1712859043157,-500.0,0.00030136,2]
[322159349,1712859043167,-500.0,0.00030136,2]
[322159350,1712859043176,-1039.77,0.00030136,2]
[322159352,1712859043186,-500.0,0.00030136,2]
[322159353,1712859043197,-523.31024304,0.00030136,2]
[322159355,1712859043207,-500.0,0.00030136,2]
[322159357,1712859043216,-500.0,0.00030136,2]
[322159359,1712859043225,-500.0,0.00030136,2]
[322159361,1712859043234,-707.9,0.00030136,2]
[322159362,1712859043245,-500.0,0.00030136,2]
[322159363,1712859043254,-500.0,0.00030136,2]
[322159364,1712859043263,-644.54423816,0.00030136,2]
[322159365,1712859043272,-500.0,0.00030136,2]
[322159366,1712859043282,-500.0,0.00030136,2]
[322159368,1712859043293,-500.0,0.00030136,2]
[322159369,1712859043303,-500.0,0.00030136,2]
[322159370,1712859043313,-500.0,0.00030136,2]
[322159371,1712859043323,-551.13,0.00030136,2]
[322159372,1712859043333,-500.0,0.00030136,2]
[322159373,1712859043342,-500.0,0.00030136,2]